[Event "Schachfestival Open-A 2018"]
[Site "Lueneburg"]
[Date "2018.07.06"]
[Round "2"]
[White "Ngo, Minh Duc"]
[Black "Harringer, Manfred"]
[Result "1-0"]
[ECO "C78"]
[WhiteElo "2191"]
[BlackElo "1998"]
[Annotator "NA"]
[PlyCount "131"]
[EventDate "2018.07.06"]
[EventType "swiss"]
[EventCountry "GER"]
[SourceTitle "playchess.com"]
[Source "ChessBase"]
[SourceQuality "1"]
[TimeControl "40/5400+30:1800+30"]

1. e4 {[%emt 0:00:00]} e5 {[%emt 0:00:00]} 2. Nf3 {[%emt 0:00:00]} Nc6 {[%emt 0:00:00]} 3. Bb5 {[%emt 0:00:00]} a6 {[%emt 0:00:00]} 4. Ba4 {[%emt 0:00:00]} Nf6 {[%emt 0:00:30]} 5. O-O {[%emt 0:00:00]} b5 {[%emt 0:01:17]} 6. Bb3 {[%emt 0:00:00]} Bc5 {[%emt 0:00:03]} 7. d3 {[%emt 0:00:33]} d6 {[%emt 0:00:59]} 8. c3 {[%emt 0:00:14]} Ba7 {[%emt 0:01:52]} 9. a4 {[%emt 0:02:18]} O-O {[%emt 0:11:48]} 10. h3 {[%emt 0:02:04]} h6 {[%emt 0:04:17]} 11. Na3 {[%emt 0:00:10]} b4 {[%emt 0:02:09]} 12. Nc2 {[%emt 0:00:03]} bxc3 {[%emt 0:07:30]} 13. bxc3 {[%emt 0:00:08]} d5 {[%emt 0:01:07]} 14. Qe2 {[%emt 0:01:32]} Be6 {[%emt 0:07:48]} 15. Ba3 {[%emt 0:04:35]} Re8 {[%emt 0:06:45]} 16. Nd2 {[%emt 0:03:39]} Na5 {[%emt 0:06:06]} 17. Ba2 {[%emt 0:01:54]} Qd7 {[%emt 0:02:22]} 18. Nf3 {[%emt 0:02:47]} dxe4 {[%emt 0:02:17]} 19. Nxe5 {[%emt 0:00:57]} exd3 {[%emt 0:02:35]} 20. Qf3 {[%emt 0:07:16]} Qc8 {[%emt 0:01:46]} 21. Nxd3 {[%emt 0:03:11]} Bxa2 {[%emt 0:01:49]} 22. Rxa2 {[%emt 0:00:05]} Nc4 {[%emt 0:00:40]} 23. Nd4 {[%emt 0:01:29]} Qd7 {[%emt 0:01:53]} 24. Bc5 {[%emt 0:06:03]} Qd5 {[%emt 0:04:43]} 25. Bxa7 {[%emt 0:01:24]} Rxa7 {[%emt 0:00:32]} 26. Qxd5 {[%emt 0:03:06]} Nxd5 {[%emt 0:00:05]} 27. Nc5 {[%emt 0:00:27]} Raa8 {[%emt 0:07:20]} 28. Rc2 {[%emt 0:00:50]} Reb8 {[%emt 0:01:30]} 29. Rd1 {[%emt 0:02:54]} Rb2 {[%emt 0:01:52]} 30. Rxb2 {[%emt 0:00:36]} Nxb2 {[%emt 0:00:06]} 31. Rb1 {[%emt 0:00:11]} Nc4 {[%emt 0:01:12]} 32. Kh2 {[%emt 0:01:25]} Nd6 {[%emt 0:02:41]} 33. Rb3 {[%emt 0:02:36]} Kf8 {[%emt 0:05:23]} 34. Nc6 {[%emt 0:00:12]} Ne7 {[%emt 0:03:05]} 35. Ne5 {[%emt 0:05:32]} Ke8 {[%emt 0:02:27]} 36. a5 {[%emt 0:02:15]} Kd8 {[%emt 0:04:12]} 37. Rb1 {[%emt 0:01:58]} Kc8 {[%emt 0:02:56]} 38. Re1 {[%emt 0:01:21]} Kd8 {[%emt 0:02:45]} 39. Re2 {[%emt 0:02:35]} Rb8 {[%emt 0:01:24]} 40. Nxa6 {[%emt 0:00:32]} Ra8 {[%emt 0:01:22]} 41. Nb4 {[%emt 0:32:02]} c5 {[%emt 0:01:00]} 42. Nc2 {[%emt 0:00:00]} Rxa5 {[%emt 0:01:41]} 43. Rd2 {[%emt 0:00:00]} Ra6 {[%emt 0:04:05]} 44. Nxf7+ {[%emt 0:00:00]} Kd7 {[%emt 0:01:20]} 45. Ne5+ {[%emt 0:00:00]} Ke6 {[%emt 0:00:27]} 46. Nd3 {[%emt 0:00:00]} Rc6 {[%emt 0:02:11]} 47. Re2+ {[%emt 0:00:00]} Kf6 {[%emt 0:00:23]} 48. Ne3 {[%emt 0:00:00]} Ng6 {[%emt 0:05:57]} 49. Nd5+ {[%emt 0:00:00]} Kf7 {[%emt 0:00:26]} 50. h4 {[%emt 0:00:00]} c4 {[%emt 0:07:45]} 51. N3b4 {[%emt 0:00:00]} Rc5 {[%emt 0:01:33]} 52. h5 {[%emt 0:00:00]} Nh4 {[%emt 0:00:33]} 53. g4 {[%emt 0:00:00]} Nf3+ {[%emt 0:00:52]} 54. Kg3 {[%emt 0:00:00]} Ng5 {[%emt 0:01:40]} 55. Re7+ {[%emt 0:00:00]} Kf8 {[%emt 0:00:05]} 56. f3 {[%emt 0:00:00]} Nb5 {[%emt 0:02:07]} 57. Rb7 {[%emt 0:00:00]} Nd6 {[%emt 0:01:24]} 58. Rd7 {[%emt 0:00:00]} Ngf7 {[%emt 0:00:20]} 59. Nf4 {[%emt 0:00:00]} Ke8 {[%emt 0:00:53]} 60. Ra7 {[%emt 0:00:00]} Re5 {[%emt 0:01:21]} 61. Ng6 {[%emt 0:00:00]} Re3 {[%emt 0:00:47]} 62. Nd5 {[%emt 0:00:00]} Rd3 {[%emt 0:00:33]} 63. Ngf4 {[%emt 0:00:00]} Ne4+ {[%emt 0:01:00]} 64. Kh4 {[%emt 0:00:00]} Rxf3 {[%emt 0:01:18]} 65. Ne6 {[%emt 0:00:00]} Neg5 {[%emt 0:00:51]} 66. Re7# {[%emt 0:00:00]} 1-0

[Event "Schachfestival Open-A 2018"]
[Site "Lueneburg"]
[Date "2018.07.06"]
[Round "2"]
[White "Kornitzky, Tino"]
[Black "Karpatchev, Aleksandr"]
[Result "0-1"]
[ECO "D20"]
[WhiteElo "2104"]
[BlackElo "2469"]
[Annotator "ChessBase"]
[PlyCount "90"]
[EventDate "2018.07.06"]
[EventType "swiss"]
[EventCountry "GER"]
[SourceTitle "playchess.com"]
[Source "ChessBase"]
[SourceQuality "1"]
[TimeControl "40/5400+30:1800+30"]

1. d4 {[%emt 0:00:00]} d5 {[%emt 0:00:15]} 2. c4 {[%emt 0:00:00]} dxc4 {[%emt 0:00:12]} 3. e3 {[%emt 0:00:00]} e5 {[%emt 0:00:36]} 4. Bxc4 {[%emt 0:00:01]} Nc6 {[%emt 0:00:05]} 5. Nf3 {[%emt 0:00:47]} e4 {[%emt 0:00:07]} 6. Nfd2 {[%emt 0:02:08]} Qg5 {[%emt 0:00:07]} 7. g3 {[%emt 0:10:30]} Qg6 {[%emt 0:00:07]} 8. Nc3 {[%emt 0:01:32]} Nf6 {[%emt 0:00:12]} 9. a3 {[%emt 0:05:07]} Bd6 {[%emt 0:03:05]} 10. Qc2 {[%emt 0:03:39]} O-O {[%emt 0:12:44]} 11. O-O {[%emt 0:15:06]} Bf5 {[%emt 0:04:08]} 12. Re1 {[%emt 0:03:05]} h5 {[%emt 0:12:56]} 13. Bf1 {[%emt 0:05:18]} h4 {[%emt 0:10:50]} 14. Bg2 {[%emt 0:04:59]} Rfe8 {[%emt 0:03:24]} 15. Ne2 {[%emt 0:06:05]} Ng4 {[%emt 0:18:51]} 16. b3 {[%emt 0:06:08]} Qf6 {[%emt 0:05:15]} 17. Bb2 {[%emt 0:05:44]} Bh7 {[%emt 0:10:22]} 18. Rf1 {[%emt 0:06:06]} hxg3 {[%emt 0:00:39]} 19. hxg3 {[%emt 0:01:24]} Qh6 {[%emt 0:01:17]} 20. Rfe1 {[%emt 0:03:02]} Qh2+ {[%emt 0:06:29]} 21. Kf1 {[%emt 0:00:49]} Nf6 {[%emt 0:00:15]} 22. Nc4 {[%emt 0:02:22]} Bf5 {[%emt 0:01:02]} 23. Ng1 {[%emt 0:03:17]} Qh5 {[%emt 0:02:43]} 24. Nxd6 {[%emt 0:03:05]} cxd6 {[%emt 0:00:01]} 25. Rec1 {[%emt 0:02:35]} Ng4 {[%emt 0:00:18]} 26. Qc3 {[%emt 0:01:40]} d5 {[%emt 0:00:21]} 27. Qc5 {[%emt 0:02:12]} Rad8 {[%emt 0:00:31]} 28. b4 {[%emt 0:00:49]} Nh2+ {[%emt 0:01:25]} 29. Ke1 {[%emt 0:00:03]} Nf3+ {[%emt 0:00:14]} 30. Bxf3 {[%emt 0:02:56]} exf3 {[%emt 0:00:01]} 31. Kd2 {[%emt 0:00:46]} Be4 {[%emt 0:01:40]} 32. Qb5 {[%emt 0:01:54]} Re7 {[%emt 0:00:36]} 33. Qf1 {[%emt 0:00:21]} Bf5 {[%emt 0:00:32]} 34. Rc5 {[%emt 0:00:40]} Bg4 {[%emt 0:00:34]} 35. Rac1 {[%emt 0:00:50]} a6 {[%emt 0:01:22]} 36. Kc2 {[%emt 0:00:48]} Na7 {[%emt 0:01:08]} 37. Kb1 {[%emt 0:01:01]} Nb5 {[%emt 0:00:09]} 38. Ka2 {[%emt 0:00:36]} Nd6 {[%emt 0:00:22]} 39. Qe1 {[%emt 0:01:11]} Ne4 {[%emt 0:01:23]} 40. Rc7 {[%emt 0:00:23]} Rxc7 {[%emt 0:01:06]} 41. Rxc7 {[%emt 0:30:41]} Rc8 {[%emt 0:31:51]} 42. Rxc8+ {[%emt 0:00:00]} Bxc8 {[%emt 0:00:00]} 43. Qc1 {[%emt 0:00:00]} Bg4 {[%emt 0:00:00]} 44. Qc7 {[%emt 0:00:00]} Nxf2 {[%emt 0:00:00]} 45. Qxb7 {[%emt 0:00:00]} Nd1 {[%emt 0:00:00]} 0-1

[Event "Schachfestival Open-A 2018"]
[Site "Lueneburg"]
[Date "2018.07.06"]
[Round "2"]
[White "Bajorski, Marius"]
[Black "Kumsiashvili, Nikoloz"]
[Result "1/2-1/2"]
[ECO "B51"]
[WhiteElo "2060"]
[BlackElo "2411"]
[Annotator "ChessBase"]
[PlyCount "93"]
[EventDate "2018.07.06"]
[EventType "swiss"]
[EventCountry "GER"]
[SourceTitle "playchess.com"]
[Source "ChessBase"]
[SourceQuality "1"]
[TimeControl "40/5400+30:1800+30"]

1. e4 {[%emt 0:00:00]} c5 {[%emt 0:00:00]} 2. Nf3 {[%emt 0:00:00]} d6 {[%emt 0:00:24]} 3. Bb5+ {[%emt 0:00:00]} Nd7 {[%emt 0:01:17]} 4. O-O {[%emt 0:00:00]} a6 {[%emt 0:00:14]} 5. Bd3 {[%emt 0:00:00]} Ngf6 {[%emt 0:01:22]} 6. Re1 {[%emt 0:02:12]} e6 {[%emt 0:00:19]} 7. c3 {[%emt 0:00:12]} Be7 {[%emt 0:00:19]} 8. Bc2 {[%emt 0:00:28]} O-O {[%emt 0:01:22]} 9. d4 {[%emt 0:02:13]} cxd4 {[%emt 0:00:05]} 10. cxd4 {[%emt 0:00:13]} b5 {[%emt 0:05:17]} 11. Bd2 {[%emt 0:03:56]} Bb7 {[%emt 0:04:37]} 12. Bc3 {[%emt 0:17:49]} Qb6 {[%emt 0:05:16]} 13. b3 {[%emt 0:01:29]} Rfc8 {[%emt 0:03:59]} 14. Bb2 {[%emt 0:01:20]} Nf8 {[%emt 0:01:54]} 15. Nbd2 {[%emt 0:01:22]} Ng6 {[%emt 0:01:02]} 16. Nf1 {[%emt 0:01:58]} Rc7 {[%emt 0:03:40]} 17. Qd2 {[%emt 0:01:55]} Rac8 {[%emt 0:01:54]} 18. Bd3 {[%emt 0:02:20]} d5 {[%emt 0:03:55]} 19. e5 {[%emt 0:02:43]} Ne4 {[%emt 0:00:19]} 20. Qe3 {[%emt 0:01:07]} Bb4 {[%emt 0:02:55]} 21. Rec1 {[%emt 0:09:09]} Qa5 {[%emt 0:03:08]} 22. a3 {[%emt 0:05:11]} Bc3 {[%emt 0:02:05]} 23. b4 {[%emt 0:04:42]} Qa4 {[%emt 0:04:56]} 24. Rcb1 {[%emt 0:11:26]} Bxb2 {[%emt 0:01:33]} 25. Rxb2 {[%emt 0:01:02]} Rc3 {[%emt 0:00:14]} 26. Rba2 {[%emt 0:00:57]} Nf4 {[%emt 0:10:54]} 27. Ne1 {[%emt 0:16:18]} Nxd3 {[%emt 0:03:32]} 28. Nxd3 {[%emt 0:00:01]} Qb3 {[%emt 0:03:54]} 29. Rb2 {[%emt 0:00:30]} Qc4 {[%emt 0:00:39]} 30. Rd1 {[%emt 0:04:45]} Rxa3 {[%emt 0:00:28]} 31. f3 {[%emt 0:02:23]} Nc3 {[%emt 0:03:47]} 32. Rc1 {[%emt 0:01:14]} Ne2+ {[%emt 0:03:11]} 33. Rxe2 {[%emt 0:05:41]} Qxd3 {[%emt 0:00:05]} 34. Qxd3 {[%emt 0:00:22]} Rxd3 {[%emt 0:00:03]} 35. Rec2 {[%emt 0:00:14]} Rc4 {[%emt 0:04:04]} 36. Kf2 {[%emt 0:01:01]} Rdxd4 {[%emt 0:04:21]} 37. Ne3 {[%emt 0:00:03]} Rd2+ {[%emt 0:00:29]} 38. Rxd2 {[%emt 0:00:04]} Rxc1 {[%emt 0:00:04]} 39. Rc2 {[%emt 0:00:03]} Rxc2+ {[%emt 0:00:15]} 40. Nxc2 {[%emt 0:00:01]} f6 {[%emt 0:01:14]} 41. f4 {[%emt 0:32:20]} d4 {[%emt 0:33:12]} 42. Nxd4 {[%emt 0:01:03]} Bd5 {[%emt 0:00:01]} 43. g3 {[%emt 0:00:00]} Kf7 {[%emt 0:00:00]} 44. Nc2 {[%emt 0:00:00]} Ke7 {[%emt 0:00:00]} 45. Ke3 {[%emt 0:00:00]} Bb3 {[%emt 0:00:00]} 46. Ne1 {[%emt 0:00:00]} fxe5 {[%emt 0:00:00]} 47. fxe5 {[%emt 0:00:00]} 1/2-1/2

[Event "Schachfestival Open-A 2018"]
[Site "Lueneburg"]
[Date "2018.07.06"]
[Round "2"]
[White "Bosselmann, Tom Linus"]
[Black "Weishaeutel, Moritz"]
[Result "0-1"]
[ECO "C05"]
[WhiteElo "2036"]
[BlackElo "2236"]
[Annotator "NA"]
[PlyCount "130"]
[EventDate "2018.07.06"]
[EventType "swiss"]
[EventCountry "GER"]
[SourceTitle "playchess.com"]
[Source "ChessBase"]
[SourceQuality "1"]
[TimeControl "40/5400+30:1800+30"]

1. e4 {[%emt 0:00:00]} e6 {[%emt 0:02:07]} 2. d4 {[%emt 0:00:00]} d5 {[%emt 0:00:09]} 3. Nd2 {[%emt 0:00:32]} Nf6 {[%emt 0:00:22]} 4. e5 {[%emt 0:00:23]} Nfd7 {[%emt 0:00:23]} 5. f4 {[%emt 0:00:21]} c5 {[%emt 0:00:37]} 6. c3 {[%emt 0:00:11]} Nc6 {[%emt 0:00:57]} 7. Ndf3 {[%emt 0:00:12]} Qb6 {[%emt 0:04:14]} 8. Ne2 {[%emt 0:00:12]} cxd4 {[%emt 0:03:18]} 9. cxd4 {[%emt 0:01:08]} Bb4+ {[%emt 0:00:56]} 10. Kf2 {[%emt 0:01:48]} f6 {[%emt 0:02:14]} 11. Be3 {[%emt 0:03:11]} O-O {[%emt 0:02:15]} 12. g3 {[%emt 0:00:52]} fxe5 {[%emt 0:03:14]} 13. dxe5 {[%emt 0:07:05]} Bc5 {[%emt 0:00:12]} 14. Qd2 {[%emt 0:09:59]} Ndxe5 {[%emt 0:07:04]} 15. Nxe5 {[%emt 0:41:00]} Nxe5 {[%emt 0:00:06]} 16. Bxc5 {[%emt 0:05:23]} Qxc5+ {[%emt 0:00:28]} 17. Qd4 {[%emt 0:02:54]} Ng4+ {[%emt 0:00:41]} 18. Kf3 {[%emt 0:02:41]} Qxd4 {[%emt 0:01:24]} 19. Nxd4 {[%emt 0:00:01]} e5 {[%emt 0:02:00]} 20. h3 {[%emt 0:06:35]} exd4 {[%emt 0:02:52]} 21. hxg4 {[%emt 0:00:07]} Re8 {[%emt 0:00:04]} 22. Rh4 {[%emt 0:10:30]} Bd7 {[%emt 0:13:17]} 23. Rd1 {[%emt 0:00:42]} Re4 {[%emt 0:00:59]} 24. Bd3 {[%emt 0:00:40]} Re3+ {[%emt 0:00:04]} 25. Kf2 {[%emt 0:00:05]} g6 {[%emt 0:00:59]} 26. Bf1 {[%emt 0:00:39]} Bc6 {[%emt 0:01:32]} 27. Rxd4 {[%emt 0:00:38]} Re4 {[%emt 0:01:01]} 28. Rxe4 {[%emt 0:01:03]} dxe4 {[%emt 0:00:01]} 29. Bc4+ {[%emt 0:00:09]} Kg7 {[%emt 0:00:05]} 30. Ke3 {[%emt 0:00:29]} Rc8 {[%emt 0:02:10]} 31. Rh1 {[%emt 0:01:48]} Bd7 {[%emt 0:01:13]} 32. b3 {[%emt 0:02:30]} b5 {[%emt 0:01:04]} 33. Bd5 {[%emt 0:00:35]} Rc3+ {[%emt 0:00:40]} 34. Kxe4 {[%emt 0:00:33]} Bxg4 {[%emt 0:00:06]} 35. Rg1 {[%emt 0:00:55]} b4 {[%emt 0:00:14]} 36. Kd4 {[%emt 0:00:25]} a5 {[%emt 0:01:52]} 37. Be4 {[%emt 0:01:12]} Kf6 {[%emt 0:00:42]} 38. Bd5 {[%emt 0:00:39]} h5 {[%emt 0:01:29]} 39. Be4 {[%emt 0:00:25]} Bf3 {[%emt 0:02:46]} 40. Bxf3 {[%emt 0:00:54]} Rxf3 {[%emt 0:00:02]} 41. Ke4 {[%emt 0:05:16]} Rf2 {[%emt 0:00:10]} 42. Ra1 {[%emt 0:02:34]} Rc2 {[%emt 0:01:47]} 43. Rd1 {[%emt 0:10:41]} Re2+ {[%emt 0:01:06]} 44. Kf3 {[%emt 0:00:23]} Rxa2 {[%emt 0:00:03]} 45. Rd6+ {[%emt 0:00:53]} Kf7 {[%emt 0:00:39]} 46. Ra6 {[%emt 0:00:24]} Ra3 {[%emt 0:08:23]} 47. Ra7+ {[%emt 0:00:38]} Ke6 {[%emt 0:00:42]} 48. Ke4 {[%emt 0:02:27]} Rxb3 {[%emt 0:00:29]} 49. Ra6+ {[%emt 0:00:04]} Kf7 {[%emt 0:00:07]} 50. Rxa5 {[%emt 0:00:24]} Rxg3 {[%emt 0:00:15]} 51. Rb5 {[%emt 0:00:08]} b3 {[%emt 0:00:05]} 52. Rb7+ {[%emt 0:00:11]} Ke6 {[%emt 0:01:19]} 53. Rb6+ {[%emt 0:00:49]} Kd7 {[%emt 0:00:15]} 54. Rb4 {[%emt 0:03:50]} h4 {[%emt 0:00:41]} 55. Rd4+ {[%emt 0:00:20]} Ke6 {[%emt 0:00:48]} 56. Rd2 {[%emt 0:00:11]} Rc3 {[%emt 0:01:04]} 57. Rb2 {[%emt 0:00:43]} Rc4+ {[%emt 0:00:32]} 58. Ke3 {[%emt 0:01:45]} Rb4 {[%emt 0:00:05]} 59. Ke2 {[%emt 0:02:32]} Kd5 {[%emt 0:00:30]} 60. Ke3 {[%emt 0:01:02]} Kc4 {[%emt 0:00:08]} 61. Kd2 {[%emt 0:01:01]} Kd4 {[%emt 0:00:04]} 62. Rb1 {[%emt 0:00:25]} b2 {[%emt 0:00:03]} 63. Kc2 {[%emt 0:00:04]} Ke3 {[%emt 0:00:03]} 64. Re1+ {[%emt 0:00:35]} Kf2 {[%emt 0:00:04]} 65. Rb1 {[%emt 0:00:10]} h3 {[%emt 0:00:04]} 0-1

[Event "Schachfestival Open-A 2018"]
[Site "Lueneburg"]
[Date "2018.07.06"]
[Round "2"]
[White "Haerig, Wilfried"]
[Black "Colpe, Malte"]
[Result "0-1"]
[ECO "B51"]
[WhiteElo "2022"]
[BlackElo "2382"]
[Annotator "NA"]
[PlyCount "44"]
[EventDate "2018.07.06"]
[EventType "swiss"]
[EventCountry "GER"]
[SourceTitle "playchess.com"]
[Source "ChessBase"]
[SourceQuality "1"]
[TimeControl "40/5400+30:1800+30"]

1. e4 {[%emt 0:00:00]} c5 {[%emt 0:00:00]} 2. Nf3 {[%emt 0:00:00]} d6 {[%emt 0:00:00]} 3. Bb5+ {[%emt 0:00:02]} Nc6 {[%emt 0:00:41]} 4. Bxc6+ {[%emt 0:00:13]} bxc6 {[%emt 0:00:06]} 5. O-O {[%emt 0:00:19]} e5 {[%emt 0:00:23]} 6. h3 {[%emt 0:02:37]} Ne7 {[%emt 0:04:49]} 7. d3 {[%emt 0:00:52]} Ng6 {[%emt 0:00:59]} 8. Nbd2 {[%emt 0:11:20]} Be7 {[%emt 0:00:39]} 9. c3 {[%emt 0:01:17]} O-O {[%emt 0:02:12]} 10. Nc4 {[%emt 0:01:48]} f5 {[%emt 0:05:36]} 11. Qa4 {[%emt 0:07:49]} fxe4 {[%emt 0:04:34]} 12. dxe4 {[%emt 0:12:10]} Bxh3 {[%emt 0:18:14]} 13. Nfxe5 {[%emt 0:02:36]} dxe5 {[%emt 0:00:41]} 14. gxh3 {[%emt 0:00:33]} Qd7 {[%emt 0:00:59]} 15. Ne3 {[%emt 0:10:37]} Qxh3 {[%emt 0:02:26]} 16. Ng2 {[%emt 0:03:58]} Qg4 {[%emt 0:10:39]} 17. f3 {[%emt 0:06:29]} Qg3 {[%emt 0:02:36]} 18. Qc4+ {[%emt 0:04:32]} Kh8 {[%emt 0:01:36]} 19. Qe2 {[%emt 0:00:05]} c4 {[%emt 0:05:05]} 20. Be3 {[%emt 0:01:05]} Nh4 {[%emt 0:00:56]} 21. f4 {[%emt 0:02:15]} Nxg2 {[%emt 0:00:11]} 22. Rf3 {[%emt 0:02:23]} Nxf4+ {[%emt 0:00:08]} 0-1

[Event "Schachfestival Open-A 2018"]
[Site "Lueneburg"]
[Date "2018.07.06"]
[Round "2"]
[White "Hoffmann, Lennard"]
[Black "Poeck, Ole"]
[Result "1-0"]
[ECO "C65"]
[WhiteElo "1981"]
[BlackElo "2195"]
[Annotator "NA"]
[PlyCount "49"]
[EventDate "2018.07.06"]
[EventType "swiss"]
[EventCountry "GER"]
[SourceTitle "playchess.com"]
[Source "ChessBase"]
[SourceQuality "1"]
[TimeControl "40/5400+30:1800+30"]

1. e4 {[%emt 0:00:00]} e5 {[%emt 0:00:00]} 2. Nf3 {[%emt 0:00:00]} Nc6 {[%emt 0:00:00]} 3. Bb5 {[%emt 0:00:00]} Nf6 {[%emt 0:00:00]} 4. Qe2 {[%emt 0:00:43]} Bc5 {[%emt 0:03:57]} 5. c3 {[%emt 0:01:13]} O-O {[%emt 0:00:48]} 6. O-O {[%emt 0:00:41]} Re8 {[%emt 0:01:22]} 7. Rd1 {[%emt 0:03:27]} d5 {[%emt 0:09:09]} 8. d3 {[%emt 0:04:59]} Qd6 {[%emt 0:01:03]} 9. Nbd2 {[%emt 0:03:15]} Bxf2+ {[%emt 0:02:58]} 10. Qxf2 {[%emt 0:19:06]} Ng4 {[%emt 0:00:14]} 11. Qe2 {[%emt 0:00:47]} Qc5+ {[%emt 0:00:08]} 12. d4 {[%emt 0:01:04]} exd4 {[%emt 0:00:16]} 13. Nb3 {[%emt 0:00:46]} Qb6 {[%emt 0:01:33]} 14. cxd4 {[%emt 0:01:59]} Rxe4 {[%emt 0:00:13]} 15. Qf1 {[%emt 0:01:09]} Be6 {[%emt 0:06:14]} 16. Bxc6 {[%emt 0:02:34]} bxc6 {[%emt 0:00:19]} 17. Nc5 {[%emt 0:00:44]} Rxd4 {[%emt 0:01:00]} 18. Nxd4 {[%emt 0:00:16]} Qxc5 {[%emt 0:00:05]} 19. h3 {[%emt 0:00:13]} Nf6 {[%emt 0:00:34]} 20. Be3 {[%emt 0:00:50]} Qd6 {[%emt 0:00:15]} 21. Bf4 {[%emt 0:00:52]} Qd7 {[%emt 0:00:38]} 22. Rac1 {[%emt 0:01:35]} Ne4 {[%emt 0:00:45]} 23. Rxc6 {[%emt 0:02:08]} Rc8 {[%emt 0:00:35]} 24. Rdc1 {[%emt 0:03:09]} Bxh3 {[%emt 0:00:07]} 25. gxh3 {[%emt 0:01:20]} 1-0

[Event "Schachfestival Open-A 2018"]
[Site "Lueneburg"]
[Date "2018.07.06"]
[Round "2"]
[White "Stolberg-Rohr, Thomine"]
[Black "Boehm, Juergen"]
[Result "0-1"]
[ECO "D15"]
[WhiteElo "1975"]
[BlackElo "2233"]
[Annotator "NA"]
[PlyCount "29"]
[EventDate "2018.07.06"]
[EventType "swiss"]
[EventCountry "GER"]
[SourceTitle "playchess.com"]
[Source "ChessBase"]
[SourceQuality "1"]
[TimeControl "40/5400+30:1800+30"]

1. d4 {[%emt 0:12:08]} d5 {[%emt 0:00:00]} 2. c4 {[%emt 0:00:17]} c6 {[%emt 0:00:00]} 3. Nc3 {[%emt 0:00:10]} Nf6 {[%emt 0:00:08]} 4. Nf3 {[%emt 0:01:26]} a6 {[%emt 0:00:07]} 5. b3 {[%emt 0:02:41]} Bf5 {[%emt 0:05:31]} 6. e3 {[%emt 0:00:30]} e6 {[%emt 0:00:59]} 7. Bd3 {[%emt 0:02:43]} Bb4 {[%emt 0:02:01]} 8. Bb2 {[%emt 0:02:35]} Qa5 {[%emt 0:04:07]} 9. Qc2 {[%emt 0:21:27]} Bxd3 {[%emt 0:02:32]} 10. Qxd3 {[%emt 0:00:37]} Ne4 {[%emt 0:00:14]} 11. Rc1 {[%emt 0:01:50]} Qxa2 {[%emt 0:01:03]} 12. Qc2 {[%emt 0:19:51]} dxc4 {[%emt 0:09:34]} 13. bxc4 {[%emt 0:02:31]} Nxc3 {[%emt 0:00:42]} 14. Bxc3 {[%emt 0:00:25]} Qxc4 {[%emt 0:00:22]} 15. Bd2 0-1

[Event "Schachfestival Open-A 2018"]
[Site "Lueneburg"]
[Date "2018.07.08"]
[Round "4"]
[White "Vorobiov, Evgeny E"]
[Black "Genov, Petar"]
[Result "1-0"]
[ECO "B10"]
[WhiteElo "2564"]
[BlackElo "2435"]
[Annotator "ChessBase"]
[PlyCount "123"]
[EventDate "2018.07.06"]
[EventType "swiss"]
[EventCountry "GER"]
[SourceTitle "playchess.com"]
[Source "ChessBase"]
[SourceQuality "1"]
[TimeControl "40/5400+30:1800+30"]

1. e4 {[%emt 0:00:00]} c6 {[%emt 0:06:46]} 2. Nf3 {[%emt 0:00:24]} d5 {[%emt 0:00:41]} 3. Nc3 {[%emt 0:00:05]} Nf6 {[%emt 0:02:37]} 4. e5 {[%emt 0:00:28]} Ne4 {[%emt 0:01:45]} 5. Ne2 {[%emt 0:00:31]} Qb6 {[%emt 0:07:31]} 6. d4 {[%emt 0:01:01]} e6 {[%emt 0:06:11]} 7. Ng3 {[%emt 0:01:59]} c5 {[%emt 0:05:56]} 8. c3 {[%emt 0:02:18]} Nc6 {[%emt 0:08:02]} 9. Bd3 {[%emt 0:01:29]} cxd4 {[%emt 0:02:26]} 10. Nxe4 {[%emt 0:01:15]} dxe4 {[%emt 0:00:34]} 11. Bxe4 {[%emt 0:00:04]} dxc3 {[%emt 0:01:56]} 12. bxc3 {[%emt 0:00:17]} Qa5 {[%emt 0:11:13]} 13. O-O {[%emt 0:02:22]} Nxe5 {[%emt 0:03:08]} 14. Rb1 {[%emt 0:08:23]} Nxf3+ {[%emt 0:12:03]} 15. Qxf3 {[%emt 0:01:04]} Bd6 {[%emt 0:00:51]} 16. Rd1 {[%emt 0:08:44]} Qc7 {[%emt 0:02:59]} 17. Ba3 {[%emt 0:08:59]} Bxa3 {[%emt 0:09:39]} 18. Bxb7 {[%emt 0:00:28]} O-O {[%emt 0:00:44]} 19. Bxa8 {[%emt 0:00:37]} Bc5 {[%emt 0:00:49]} 20. Qc6 {[%emt 0:06:17]} Qe5 {[%emt 0:01:30]} 21. Re1 {[%emt 0:05:18]} Qf5 {[%emt 0:01:04]} 22. Qf3 {[%emt 0:00:21]} Qg5 {[%emt 0:01:22]} 23. Bb7 {[%emt 0:04:46]} Bd7 {[%emt 0:03:08]} 24. Bc6 {[%emt 0:02:02]} Bc8 {[%emt 0:00:33]} 25. a4 {[%emt 0:01:09]} g6 {[%emt 0:01:14]} 26. Red1 {[%emt 0:04:01]} Bb6 {[%emt 0:02:23]} 27. Rb2 {[%emt 0:11:48]} Kg7 {[%emt 0:01:20]} 28. Rbd2 {[%emt 0:09:30]} Ba6 {[%emt 0:01:35]} 29. g3 {[%emt 0:04:42]} Kg8 {[%emt 0:00:22]} 30. h4 {[%emt 0:01:53]} Qc5 {[%emt 0:00:43]} 31. Bb5 {[%emt 0:01:07]} Bc8 {[%emt 0:03:11]} 32. Qc6 {[%emt 0:03:22]} Qe5 {[%emt 0:00:16]} 33. Kh2 {[%emt 0:00:17]} Qf5 {[%emt 0:00:33]} 34. Bd3 {[%emt 0:04:31]} Qe5 {[%emt 0:00:26]} 35. Bf1 {[%emt 0:01:19]} Ba5 {[%emt 0:00:32]} 36. Bg2 {[%emt 0:01:27]} Qxc3 {[%emt 0:00:57]} 37. Qxc3 {[%emt 0:00:46]} Bxc3 {[%emt 0:00:03]} 38. Rd8 {[%emt 0:00:32]} Ba5 {[%emt 0:00:29]} 39. Rxf8+ {[%emt 0:00:27]} Kxf8 {[%emt 0:00:07]} 40. Bc6 {[%emt 0:02:13]} Ke7 {[%emt 0:01:28]} 41. Kg2 {[%emt 0:30:35]} h6 {[%emt 0:13:20]} 42. h5 {[%emt 0:00:00]} g5 {[%emt 0:01:45]} 43. g4 {[%emt 0:00:00]} Bc7 {[%emt 0:02:44]} 44. f3 {[%emt 0:00:00]} Bd6 {[%emt 0:02:24]} 45. Rb1 {[%emt 0:00:00]} Bc7 {[%emt 0:03:33]} 46. Rb3 {[%emt 0:00:00]} a5 {[%emt 0:02:03]} 47. Kf2 {[%emt 0:00:00]} Bd6 {[%emt 0:00:30]} 48. Rb1 {[%emt 0:00:00]} Ba6 {[%emt 0:01:52]} 49. Bb5 {[%emt 0:00:00]} Bb7 {[%emt 0:01:19]} 50. Ke2 {[%emt 0:00:00]} Bf4 {[%emt 0:03:18]} 51. Rb2 {[%emt 0:00:00]} Be5 {[%emt 0:00:30]} 52. Rc2 {[%emt 0:00:00]} Bd6 {[%emt 0:00:25]} 53. Bd3 {[%emt 0:00:00]} Kd8 {[%emt 0:01:03]} 54. Be4 {[%emt 0:00:00]} Bc8 {[%emt 0:00:24]} 55. Kd3 {[%emt 0:00:00]} Bd7 {[%emt 0:00:45]} 56. Bc6 {[%emt 0:00:00]} Bc8 {[%emt 0:00:04]} 57. Kd4 {[%emt 0:00:00]} Ke7 {[%emt 0:01:19]} 58. Rc1 {[%emt 0:00:40]} Ba6 {[%emt 0:00:30]} 59. Be4 {[%emt 0:01:07]} Be2 {[%emt 0:01:12]} 60. Bb7 {[%emt 0:03:35]} Bf4 {[%emt 0:00:47]} 61. Re1 {[%emt 0:00:49]} e5+ {[%emt 0:00:28]} 62. Kc3 {[%emt 0:00:39]} 1-0